[Event "Montebelluna Elite 2020"]
[Site "Montebelluna"]
[Date "2020.01.03"]
[Round "2.2"]
[White "Martinez Alcantara, Jose Eduardo"]
[Black "Raja Rithvik R"]
[Result "1-0"]
[ECO "A11"]
[WhiteElo "2606"]
[BlackElo "2412"]
[Annotator "RC"]
[PlyCount "75"]
[EventDate "2020.01.02"]
[EventType "swiss"]
[EventCountry "ITA"]
[SourceTitle "playchess.com"]
[Source "ChessBase"]
[SourceQuality "1"]
[TimeControl "5400+30"]

1. Nf3 {[%emt 0:00:00]} d5 {[%emt 0:00:35]} 2. g3 {[%emt 0:00:00]} Bg4 {[%emt 0:00:48]} 3. Bg2 {[%emt 0:00:00]} c6 {[%emt 0:00:05]} 4. c4 {[%emt 0:00:00]} e6 {[%emt 0:00:06]} 5. O-O {[%emt 0:00:22]} Nf6 {[%emt 0:00:23]} 6. Qb3 {[%emt 0:00:58]} Qb6 {[%emt 0:00:27]} 7. d3 {[%emt 0:00:29]} Nbd7 {[%emt 0:00:04]} 8. Qc2 {[%emt 0:02:06]} dxc4 {[%emt 0:05:33]} 9. Qxc4 {[%emt 0:00:37]} Bxf3 {[%emt 0:00:09]} 10. Bxf3 {[%emt 0:00:03]} Ne5 {[%emt 0:00:04]} 11. Qf4 {[%emt 0:00:25]} Nxf3+ {[%emt 0:01:14]} 12. Qxf3 {[%emt 0:00:02]} Be7 {[%emt 0:00:50]} 13. Nd2 {[%emt 0:00:06]} O-O {[%emt 0:01:27]} 14. Nc4 {[%emt 0:00:40]} Qd8 {[%emt 0:02:42]} 15. Bd2 {[%emt 0:01:32]} Nd5 {[%emt 0:03:34]} 16. a3 {[%emt 0:00:38]} c5 {[%emt 0:02:06]} 17. Rac1 {[%emt 0:10:39]} Rc8 {[%emt 0:05:22]} 18. Rfd1 {[%emt 0:02:56]} Qd7 {[%emt 0:08:19]} 19. h4 {[%emt 0:08:51]} Bf6 {[%emt 0:06:39]} 20. Rc2 {[%emt 0:06:00]} Ne7 {[%emt 0:03:22]} 21. Bc3 {[%emt 0:05:23]} Bxc3 {[%emt 0:01:49]} 22. bxc3 {[%emt 0:00:13]} Nc6 {[%emt 0:01:24]} 23. a4 {[%emt 0:00:52]} Na5 {[%emt 0:03:41]} 24. Nxa5 {[%emt 0:03:28]} Qxa4 {[%emt 0:00:06]} 25. Rcc1 {[%emt 0:00:15]} Qxa5 {[%emt 0:00:07]} 26. Qxb7 {[%emt 0:00:14]} Rb8 {[%emt 0:02:24]} 27. Qe4 {[%emt 0:00:25]} Rb2 {[%emt 0:01:25]} 28. Qe5 {[%emt 0:00:13]} Qb6 {[%emt 0:03:05]} 29. Ra1 {[%emt 0:02:57]} Rb8 {[%emt 0:08:42]} 30. Ra4 {[%emt 0:06:51]} f6 {[%emt 0:00:14]} 31. Qe3 {[%emt 0:00:56]} e5 {[%emt 0:04:23]} 32. Qe4 {[%emt 0:06:45]} Qb3 {[%emt 0:09:42]} 33. Rda1 {[%emt 0:07:02]} Qxc3 {[%emt 0:00:35]} 34. Qd5+ {[%emt 0:01:00]} Kh8 {[%emt 0:00:07]} 35. Rxa7 {[%emt 0:00:17]} h6 {[%emt 0:03:42]} 36. Kg2 {[%emt 0:09:29]} Qd4 {[%emt 0:04:44]} 37. Qf7 {[%emt 0:02:09]} Qg4 {[%emt 0:00:38]} 38. R1a4 {[%emt 0:00:40]} 1-0

[Event "Montebelluna Elite 2020"]
[Site "Montebelluna"]
[Date "2020.01.03"]
[Round "2.3"]
[White "Nikolovski, Nikola"]
[Black "Erigaisi Arjun"]
[Result "0-1"]
[ECO "B11"]
[WhiteElo "2442"]
[BlackElo "2575"]
[Annotator "RC"]
[PlyCount "69"]
[EventDate "2020.01.02"]
[EventType "swiss"]
[EventCountry "ITA"]
[SourceTitle "playchess.com"]
[Source "ChessBase"]
[SourceQuality "1"]
[TimeControl "5400+30"]

1. e4 {[%emt 0:09:29]} c6 {[%emt 0:01:28]} 2. Nc3 {[%emt 0:03:05]} d5 {[%emt 0:00:09]} 3. Qf3 {[%emt 0:00:07]} e5 {[%emt 0:00:42]} 4. exd5 {[%emt 0:08:46]} Nf6 {[%emt 0:00:06]} 5. dxc6 {[%emt 0:00:58]} Nxc6 {[%emt 0:02:51]} 6. Bb5 {[%emt 0:00:40]} Bd7 {[%emt 0:09:47]} 7. d3 {[%emt 0:02:39]} a6 {[%emt 0:03:51]} 8. Bxc6 {[%emt 0:08:49]} Bxc6 {[%emt 0:00:08]} 9. Qh3 {[%emt 0:03:49]} Nd5 {[%emt 0:23:52]} 10. Bd2 {[%emt 0:10:59]} Qb6 {[%emt 0:04:06]} 11. O-O-O {[%emt 0:06:38]} Bb4 {[%emt 0:00:16]} 12. Nxd5 {[%emt 0:10:45]} Bxd5 {[%emt 0:00:23]} 13. Qg4 {[%emt 0:04:25]} Bxd2+ {[%emt 0:11:31]} 14. Rxd2 {[%emt 0:00:07]} O-O {[%emt 0:00:05]} 15. Nf3 {[%emt 0:05:27]} Bxa2 {[%emt 0:00:36]} 16. b3 {[%emt 0:04:32]} Rac8 {[%emt 0:00:26]} 17. Kd1 {[%emt 0:04:39]} e4 {[%emt 0:15:28]} 18. dxe4 {[%emt 0:07:30]} Bxb3 {[%emt 0:00:47]} 19. cxb3 {[%emt 0:01:42]} Qxb3+ {[%emt 0:00:23]} 20. Ke2 {[%emt 0:00:06]} f5 {[%emt 0:00:09]} 21. Qh4 {[%emt 0:02:34]} Qb5+ {[%emt 0:10:51]} 22. Ke1 {[%emt 0:00:29]} Rc1+ {[%emt 0:01:15]} 23. Rd1 {[%emt 0:00:06]} Rxd1+ {[%emt 0:00:22]} 24. Kxd1 {[%emt 0:00:06]} Qb1+ {[%emt 0:00:05]} 25. Ke2 {[%emt 0:00:38]} Qxh1 {[%emt 0:00:07]} 26. Ng5 {[%emt 0:02:53]} h6 {[%emt 0:00:18]} 27. Ne6 {[%emt 0:00:16]} Rc8 {[%emt 0:00:28]} 28. Nd4 {[%emt 0:01:00]} Qxg2 {[%emt 0:01:13]} 29. Nxf5 {[%emt 0:00:13]} Rc2+ {[%emt 0:00:16]} 30. Kd3 {[%emt 0:00:06]} Rxf2 {[%emt 0:00:08]} 31. Qe7 {[%emt 0:01:02]} Rf3+ {[%emt 0:01:59]} 32. Kd4 {[%emt 0:00:23]} Qf2+ {[%emt 0:00:51]} 33. Kd5 {[%emt 0:00:45]} Rxf5+ {[%emt 0:00:23]} 34. exf5 {[%emt 0:00:12]} Qxf5+ {[%emt 0:00:06]} 35. Kd4 {[%emt 0:01:35]} 0-1

[Event "Montebelluna Elite 2020"]
[Site "Montebelluna"]
[Date "2020.01.03"]
[Round "2.5"]
[White "Delchev, Aleksander"]
[Black "Yurtseven, Melih"]
[Result "1/2-1/2"]
[ECO "C07"]
[WhiteElo "2550"]
[BlackElo "2385"]
[Annotator "RC"]
[PlyCount "46"]
[EventDate "2020.01.02"]
[EventType "swiss"]
[EventCountry "ITA"]
[SourceTitle "playchess.com"]
[Source "ChessBase"]
[SourceQuality "1"]
[TimeControl "5400+30"]

1. d4 {[%emt 0:06:20]} e6 {[%emt 0:14:58]} 2. e4 {[%emt 0:00:48]} d5 {[%emt 0:00:13]} 3. Nd2 {[%emt 0:00:10]} c5 {[%emt 0:00:07]} 4. Ngf3 {[%emt 0:00:07]} cxd4 {[%emt 0:00:09]} 5. Nxd4 {[%emt 0:00:39]} Nc6 {[%emt 0:00:07]} 6. Bb5 {[%emt 0:00:33]} Bd7 {[%emt 0:00:08]} 7. Nxc6 {[%emt 0:00:05]} bxc6 {[%emt 0:00:08]} 8. Bd3 {[%emt 0:00:14]} Bd6 {[%emt 0:00:08]} 9. O-O {[%emt 0:01:02]} Ne7 {[%emt 0:12:06]} 10. Nf3 {[%emt 0:07:41]} e5 {[%emt 0:07:16]} 11. c4 {[%emt 0:05:06]} d4 {[%emt 0:02:15]} 12. c5 {[%emt 0:00:05]} Bc7 {[%emt 0:00:02]} 13. Bc4 {[%emt 0:18:57]} h6 {[%emt 0:10:01]} 14. Nh4 {[%emt 0:03:48]} Qc8 {[%emt 0:00:14]} 15. f4 {[%emt 0:03:09]} Be6 {[%emt 0:06:17]} 16. Bxe6 {[%emt 0:02:20]} Qxe6 {[%emt 0:00:05]} 17. f5 {[%emt 0:00:07]} Qc4 {[%emt 0:08:21]} 18. f6 {[%emt 0:00:04]} gxf6 {[%emt 0:00:06]} 19. Rxf6 {[%emt 0:00:17]} d3 {[%emt 0:15:38]} 20. Qf3 {[%emt 0:13:16]} Ng8 {[%emt 0:01:05]} 21. Rf5 {[%emt 0:08:11]} Ne7 {[%emt 0:00:23]} 22. Rf6 {[%emt 0:03:46]} Ng8 {[%emt 0:00:21]} 23. Rf5 {[%emt 0:02:02]} Ne7 {[%emt 0:00:18]} 1/2-1/2

[Event "Montebelluna Elite 2020"]
[Site "Montebelluna"]
[Date "2020.01.03"]
[Round "3.5"]
[White "Gaehwiler, Gabriel"]
[Black "Radovanovic, Mihajlo"]
[Result "1-0"]
[ECO "A41"]
[WhiteElo "2394"]
[BlackElo "2485"]
[Annotator "ChessBase"]
[PlyCount "77"]
[EventDate "2020.01.02"]
[EventType "swiss"]
[EventCountry "ITA"]
[SourceTitle "playchess.com"]
[Source "ChessBase"]
[SourceQuality "1"]
[TimeControl "5400+30"]

1. d4 {[%emt 0:06:00]} d6 {[%emt 0:00:00]} 2. Nf3 {[%emt 0:05:26]} g6 {[%emt 0:00:07]} 3. g3 {[%emt 0:04:48]} Bg7 {[%emt 0:00:10]} 4. Bg2 {[%emt 0:00:07]} e5 {[%emt 0:03:29]} 5. dxe5 {[%emt 0:08:38]} dxe5 {[%emt 0:00:02]} 6. Qxd8+ {[%emt 0:00:09]} Kxd8 {[%emt 0:00:02]} 7. O-O {[%emt 0:07:23]} f6 {[%emt 0:06:55]} 8. Rd1+ {[%emt 0:01:37]} Ke8 {[%emt 0:00:29]} 9. Nc3 {[%emt 0:02:56]} Na6 {[%emt 0:00:34]} 10. Ne1 {[%emt 0:04:42]} Nh6 {[%emt 0:02:37]} 11. Nd3 {[%emt 0:03:51]} Nf7 {[%emt 0:02:29]} 12. b4 {[%emt 0:02:45]} e4 {[%emt 0:03:07]} 13. b5 {[%emt 0:06:40]} f5 {[%emt 0:01:41]} 14. Bd2 {[%emt 0:23:31]} Nb8 {[%emt 0:15:53]} 15. Nf4 {[%emt 0:06:17]} c6 {[%emt 0:01:37]} 16. Rab1 {[%emt 0:00:27]} Be5 {[%emt 0:02:44]} 17. bxc6 {[%emt 0:02:03]} bxc6 {[%emt 0:02:17]} 18. Na4 {[%emt 0:02:28]} g5 {[%emt 0:05:52]} 19. Nh5 {[%emt 0:01:43]} Ba6 {[%emt 0:00:06]} 20. Bf1 {[%emt 0:03:54]} Nd7 {[%emt 0:03:01]} 21. Bc3 {[%emt 0:00:42]} Bxc3 {[%emt 0:01:44]} 22. Nxc3 {[%emt 0:00:02]} Ke7 {[%emt 0:02:17]} 23. g4 {[%emt 0:01:23]} fxg4 {[%emt 0:00:58]} 24. Nxe4 {[%emt 0:00:05]} Rab8 {[%emt 0:04:19]} 25. Rb3 {[%emt 0:00:21]} Rxb3 {[%emt 0:04:51]} 26. axb3 {[%emt 0:00:03]} Bc8 {[%emt 0:04:02]} 27. Ra1 {[%emt 0:01:09]} a6 {[%emt 0:00:01]} 28. e3 {[%emt 0:00:49]} Nde5 {[%emt 0:02:27]} 29. Bxa6 {[%emt 0:00:17]} Bf5 {[%emt 0:03:01]} 30. Bd3 {[%emt 0:01:13]} Rd8 {[%emt 0:00:44]} 31. Nc5 {[%emt 0:00:52]} Rd5 {[%emt 0:02:48]} 32. Ra7+ {[%emt 0:00:50]} Kf8 {[%emt 0:01:36]} 33. Ra8+ {[%emt 0:00:08]} Ke7 {[%emt 0:00:05]} 34. Ra7+ {[%emt 0:00:07]} Kf8 {[%emt 0:00:00]} 35. b4 {[%emt 0:00:57]} Nf3+ {[%emt 0:07:15]} 36. Kg2 {[%emt 0:00:19]} Bc8 {[%emt 0:01:21]} 37. Bc4 {[%emt 0:01:10]} Nh4+ {[%emt 0:01:10]} 38. Kf1 {[%emt 0:01:57]} g3 {[%emt 0:00:03]} 39. Bxd5 {[%emt 0:01:41]} 1-0

[Event "Montebelluna Elite 2020"]
[Site "Montebelluna"]
[Date "2020.01.03"]
[Round "3.8"]
[White "Ozenir, Ekin Baris"]
[Black "Nikolovski, Nikola"]
[Result "1/2-1/2"]
[ECO "A87"]
[WhiteElo "2285"]
[BlackElo "2442"]
[Annotator "NA RC"]
[PlyCount "46"]
[EventDate "2020.01.02"]
[EventType "swiss"]
[EventCountry "ITA"]
[SourceTitle "playchess.com"]
[Source "ChessBase"]
[SourceQuality "1"]
[TimeControl "5400+30"]

1. d4 {[%emt 0:01:58]} e6 {[%emt 0:02:19]} 2. c4 {[%emt 0:00:00]} f5 {[%emt 0:02:48]} 3. g3 {[%emt 0:00:00]} Nf6 {[%emt 0:00:07]} 4. Bg2 {[%emt 0:00:00]} g6 {[%emt 0:01:31]} 5. Nf3 {[%emt 0:02:42]} Bg7 {[%emt 0:00:08]} 6. O-O {[%emt 0:01:56]} O-O {[%emt 0:00:08]} 7. Nc3 {[%emt 0:01:31]} d6 {[%emt 0:00:07]} 8. Re1 {[%emt 0:03:10]} Ne4 {[%emt 0:00:49]} 9. Qc2 {[%emt 0:05:41]} Nxc3 {[%emt 0:00:28]} 10. Qxc3 {[%emt 0:10:50]} e5 {[%emt 0:00:46]} 11. e3 {[%emt 0:07:17]} e4 {[%emt 0:05:59]} 12. Nd2 {[%emt 0:02:00]} c5 {[%emt 0:00:39]} 13. f3 {[%emt 0:12:27]} Nc6 {[%emt 0:07:51]} 14. fxe4 {[%emt 0:06:45]} cxd4 {[%emt 0:02:12]} 15. Qc2 {[%emt 0:01:53]} Qb6 {[%emt 0:09:06]} 16. Nf3 {[%emt 0:07:06]} Bd7 {[%emt 0:27:31]} 17. Qb3 {[%emt 0:12:28]} d3 {[%emt 0:16:05]} 18. Qxd3 {[%emt 0:04:24]} fxe4 {[%emt 0:03:40]} 19. Qxe4 {[%emt 0:01:01]} Rae8 {[%emt 0:00:12]} 20. Qd3 {[%emt 0:00:47]} Nb4 {[%emt 0:03:43]} 21. Qb3 {[%emt 0:00:18]} Qc5 {[%emt 0:04:05]} 22. Bd2 {[%emt 0:00:42]} Nc6 {[%emt 0:00:45]} 23. Qb5 {[%emt 0:00:43]} Qf5 {[%emt 0:04:04]} 1/2-1/2

[Event "Montebelluna Elite 2020"]
[Site "Montebelluna"]
[Date "2020.01.03"]
[Round "4.6"]
[White "Can, Isik"]
[Black "Zanan, Evgeny"]
[Result "1/2-1/2"]
[ECO "C60"]
[WhiteElo "2374"]
[BlackElo "2503"]
[Annotator "RC"]
[PlyCount "41"]
[EventDate "2020.01.02"]
[EventType "swiss"]
[EventCountry "ITA"]
[SourceTitle "playchess.com"]
[Source "ChessBase"]
[SourceQuality "1"]
[TimeControl "5400+30"]

1. e4 {[%emt 0:01:46]} e5 {[%emt 0:18:49]} 2. Nf3 {[%emt 0:00:09]} Nc6 {[%emt 0:00:04]} 3. Bb5 {[%emt 0:00:04]} g6 {[%emt 0:00:04]} 4. d4 {[%emt 0:00:07]} exd4 {[%emt 0:00:03]} 5. Bg5 {[%emt 0:00:06]} Be7 {[%emt 0:00:03]} 6. Bxe7 {[%emt 0:00:07]} Qxe7 {[%emt 0:00:04]} 7. Bxc6 {[%emt 0:00:04]} dxc6 {[%emt 0:00:04]} 8. Qxd4 {[%emt 0:00:05]} Nf6 {[%emt 0:00:02]} 9. Nc3 {[%emt 0:00:10]} Bg4 {[%emt 0:00:09]} 10. Nd2 {[%emt 0:00:11]} c5 {[%emt 1:15:38]} 11. Qe3 {[%emt 0:00:17]} O-O-O {[%emt 0:00:22]} 12. h3 {[%emt 0:00:17]} Be6 {[%emt 0:00:10]} 13. O-O-O {[%emt 0:00:10]} Nd7 {[%emt 0:00:12]} 14. f4 {[%emt 0:17:32]} f6 {[%emt 1:16:18]} 15. Nf3 {[%emt 0:04:24]} Nb6 {[%emt 0:00:00]} 16. Rhe1 {[%emt 0:01:28]} Rhe8 {[%emt 0:00:00]} 17. g4 {[%emt 0:08:00]} Rxd1+ {[%emt 0:00:00]} 18. Rxd1 {[%emt 0:00:06]} Nc4 {[%emt 0:00:00]} 19. Qf2 {[%emt 0:03:52]} g5 {[%emt 0:00:00]} 20. b3 {[%emt 0:08:36]} Nb6 {[%emt 0:00:00]} 21. f5 {[%emt 0:00:49]} 1/2-1/2

[Event "Montebelluna Elite 2020"]
[Site "Montebelluna"]
[Date "2020.01.03"]
[Round "4.8"]
[White "O`Gorman, Tom"]
[Black "Rahul Srivatshav P"]
[Result "1/2-1/2"]
[ECO "B07"]
[WhiteElo "2245"]
[BlackElo "2444"]
[Annotator "RC"]
[PlyCount "65"]
[EventDate "2020.01.02"]
[EventType "swiss"]
[EventCountry "ITA"]
[SourceTitle "playchess.com"]
[Source "ChessBase"]
[SourceQuality "1"]
[TimeControl "5400+30"]

1. d4 {[%emt 0:00:00]} Nf6 {[%emt 0:01:45]} 2. Nf3 {[%emt 0:00:00]} g6 {[%emt 0:00:36]} 3. Nbd2 {[%emt 0:00:00]} Bg7 {[%emt 0:01:25]} 4. e4 {[%emt 0:00:00]} d6 {[%emt 0:00:03]} 5. Bb5+ {[%emt 0:00:00]} c6 {[%emt 0:00:45]} 6. Bd3 {[%emt 0:00:01]} O-O {[%emt 0:00:03]} 7. O-O {[%emt 0:00:04]} Nbd7 {[%emt 0:00:04]} 8. c3 {[%emt 0:00:13]} e5 {[%emt 0:00:34]} 9. Re1 {[%emt 0:00:46]} Qe7 {[%emt 0:02:24]} 10. b3 {[%emt 0:01:20]} b6 {[%emt 0:03:54]} 11. a4 {[%emt 0:01:46]} a6 {[%emt 1:23:57]} 12. Nc4 {[%emt 0:02:00]} Bb7 {[%emt 0:01:26]} 13. Ba3 {[%emt 0:02:51]} c5 {[%emt 0:01:37]} 14. Qc2 {[%emt 1:27:59]} exd4 {[%emt 0:04:00]} 15. cxd4 {[%emt 0:00:31]} Rfe8 {[%emt 0:00:34]} 16. d5 {[%emt 0:06:20]} Ng4 {[%emt 1:14:09]} 17. Bb2 {[%emt 0:03:32]} b5 {[%emt 0:16:39]} 18. Na5 {[%emt 0:02:26]} Nde5 {[%emt 0:10:48]} 19. Nxe5 {[%emt 0:01:15]} Nxe5 {[%emt 0:02:36]} 20. Bf1 {[%emt 0:01:55]} f5 {[%emt 0:04:36]} 21. axb5 {[%emt 0:15:38]} fxe4 {[%emt 0:00:54]} 22. Qxe4 {[%emt 0:00:51]} axb5 {[%emt 0:09:53]} 23. f4 {[%emt 0:21:51]} Ng4 {[%emt 0:26:57]} 24. Qxe7 {[%emt 0:00:22]} Rxe7 {[%emt 0:00:11]} 25. Bxg7 {[%emt 0:00:44]} Rxe1 {[%emt 0:00:31]} 26. Rxe1 {[%emt 0:00:18]} Bxd5 {[%emt 0:27:11]} 27. Bc3 {[%emt 0:37:25]} b4 {[%emt 0:04:23]} 28. Bxb4 {[%emt 0:00:08]} cxb4 {[%emt 0:00:09]} 29. Nc4 {[%emt 0:00:04]} Ra2 {[%emt 0:02:09]} 30. Nxd6 {[%emt 0:03:03]} Bxb3 {[%emt 0:00:55]} 31. h3 {[%emt 0:00:20]} Nf6 {[%emt 0:22:01]} 32. Rb1 {[%emt 0:00:12]} Bd5 {[%emt 0:00:14]} 33. Rxb4 {[%emt 0:00:27]} 1/2-1/2

[Event "Montebelluna Elite 2020"]
[Site "Montebelluna"]
[Date "2020.01.04"]
[Round "5.5"]
[White "Zanan, Evgeny"]
[Black "Nikolovski, Nikola"]
[Result "1/2-1/2"]
[ECO "C16"]
[WhiteElo "2503"]
[BlackElo "2442"]
[Annotator "ChessBase"]
[PlyCount "78"]
[EventDate "2020.01.02"]
[EventType "swiss"]
[EventCountry "ITA"]
[SourceTitle "playchess.com"]
[Source "ChessBase"]
[SourceQuality "1"]
[TimeControl "5400+30"]

1. d4 {[%emt 0:17:31]} e6 {[%emt 0:00:00]} 2. e4 {[%emt 0:00:12]} d5 {[%emt 0:00:20]} 3. Nc3 {[%emt 0:00:05]} Bb4 {[%emt 0:00:31]} 4. e5 {[%emt 0:00:06]} b6 {[%emt 0:00:30]} 5. Qg4 {[%emt 0:00:19]} Bf8 {[%emt 0:00:42]} 6. Bg5 {[%emt 0:00:16]} Qd7 {[%emt 0:01:13]} 7. O-O-O {[%emt 0:00:17]} h6 {[%emt 0:06:45]} 8. Be3 {[%emt 0:02:58]} Ne7 {[%emt 0:02:52]} 9. Nh3 {[%emt 0:02:19]} Ba6 {[%emt 0:06:04]} 10. Bxa6 {[%emt 0:06:34]} Nxa6 {[%emt 0:00:24]} 11. Qe2 {[%emt 0:00:07]} Nb4 {[%emt 0:03:06]} 12. Nf4 {[%emt 0:02:12]} O-O-O {[%emt 0:13:26]} 13. Nh5 {[%emt 0:03:34]} Kb7 {[%emt 0:01:33]} 14. g4 {[%emt 0:00:43]} Nec6 {[%emt 0:03:17]} 15. a3 {[%emt 0:06:13]} Na6 {[%emt 0:00:35]} 16. Qb5 {[%emt 0:00:38]} Qc8 {[%emt 0:03:36]} 17. Kb1 {[%emt 0:11:42]} Na5 {[%emt 0:01:00]} 18. Qe2 {[%emt 0:00:10]} Ka8 {[%emt 0:07:38]} 19. f4 {[%emt 0:05:04]} c5 {[%emt 0:03:08]} 20. dxc5 {[%emt 0:03:44]} bxc5 {[%emt 0:03:06]} 21. Qb5 {[%emt 0:00:12]} Nc4 {[%emt 0:01:36]} 22. Bc1 {[%emt 0:00:06]} Rd7 {[%emt 0:00:59]} 23. Ka1 {[%emt 0:06:00]} Nb8 {[%emt 0:00:49]} 24. f5 {[%emt 0:04:13]} Rb7 {[%emt 0:07:13]} 25. Qa4 {[%emt 0:01:03]} Nc6 {[%emt 0:00:36]} 26. b3 {[%emt 0:09:54]} N4xe5 {[%emt 0:03:15]} 27. fxe6 {[%emt 0:00:41]} fxe6 {[%emt 0:00:09]} 28. Bb2 {[%emt 0:00:40]} d4 {[%emt 0:03:34]} 29. Ne4 {[%emt 0:00:41]} Nxg4 {[%emt 0:01:26]} 30. Nf4 {[%emt 0:00:48]} Nf6 {[%emt 0:04:49]} 31. Rhe1 {[%emt 0:00:59]} Ne5 {[%emt 0:09:38]} 32. Nxf6 {[%emt 0:06:27]} gxf6 {[%emt 0:00:05]} 33. Qa6 {[%emt 0:00:03]} Be7 {[%emt 0:09:04]} 34. Qxe6 {[%emt 0:00:57]} Qxe6 {[%emt 0:02:14]} 35. Nxe6 {[%emt 0:00:06]} Rg8 {[%emt 0:00:06]} 36. Rg1 {[%emt 0:00:43]} Rbb8 {[%emt 0:00:40]} 37. Nc7+ {[%emt 0:01:03]} Kb7 {[%emt 0:00:03]} 38. Nd5 {[%emt 0:00:02]} Nc6 {[%emt 0:00:39]} 39. c3 {[%emt 0:02:22]} Bd6 {[%emt 0:01:18]} 1/2-1/2

[Event "Montebelluna Elite 2020"]
[Site "Montebelluna"]
[Date "2020.01.04"]
[Round "5.6"]
[White "Morozov, Nichita"]
[Black "Radovanovic, Mihajlo"]
[Result "0-1"]
[ECO "E73"]
[WhiteElo "2388"]
[BlackElo "2485"]
[Annotator "ChessBase"]
[PlyCount "72"]
[EventDate "2020.01.02"]
[EventType "swiss"]
[EventCountry "ITA"]
[SourceTitle "playchess.com"]
[Source "ChessBase"]
[SourceQuality "1"]
[TimeControl "5400+30"]

1. d4 {[%emt 0:08:18]} Nf6 {[%emt 0:00:00]} 2. c4 {[%emt 0:00:02]} g6 {[%emt 0:00:00]} 3. Nc3 {[%emt 0:00:05]} Bg7 {[%emt 0:00:00]} 4. e4 {[%emt 0:00:01]} O-O {[%emt 0:00:10]} 5. Be2 {[%emt 0:00:05]} d6 {[%emt 0:00:19]} 6. h4 {[%emt 0:00:03]} c5 {[%emt 0:03:38]} 7. d5 {[%emt 0:07:05]} e6 {[%emt 0:00:13]} 8. h5 {[%emt 0:02:40]} exd5 {[%emt 0:00:19]} 9. exd5 {[%emt 0:05:27]} Re8 {[%emt 0:00:28]} 10. hxg6 {[%emt 0:04:47]} hxg6 {[%emt 0:00:14]} 11. Kf1 {[%emt 0:04:12]} Ne4 {[%emt 0:02:49]} 12. Nxe4 {[%emt 0:06:32]} Rxe4 {[%emt 0:00:02]} 13. Qb3 {[%emt 0:04:11]} Rh4 {[%emt 0:12:01]} 14. Rxh4 {[%emt 0:00:35]} Qxh4 {[%emt 0:00:02]} 15. Nf3 {[%emt 0:18:21]} Qh1+ {[%emt 0:01:52]} 16. Ng1 {[%emt 0:02:56]} Be5 {[%emt 0:06:36]} 17. f4 {[%emt 0:03:04]} Bd4 {[%emt 0:00:51]} 18. Be3 {[%emt 0:00:09]} Na6 {[%emt 0:01:10]} 19. Re1 {[%emt 0:07:58]} Bxe3 {[%emt 0:05:30]} 20. Qxe3 {[%emt 0:01:15]} Nb4 {[%emt 0:00:34]} 21. Qe8+ {[%emt 0:02:16]} Kg7 {[%emt 0:00:01]} 22. Qe7 {[%emt 0:02:44]} Bf5 {[%emt 0:09:04]} 23. Rc1 {[%emt 0:05:15]} Qh2 {[%emt 0:02:51]} 24. Qxd6 {[%emt 0:02:30]} Re8 {[%emt 0:00:10]} 25. Rc3 {[%emt 0:01:15]} Be4 {[%emt 0:11:46]} 26. Bf3 {[%emt 0:05:10]} Bd3+ {[%emt 0:00:46]} 27. Kf2 {[%emt 0:06:34]} Qh4+ {[%emt 0:00:24]} 28. g3 {[%emt 0:00:00]} Qh2+ {[%emt 0:00:04]} 29. Bg2 {[%emt 0:00:00]} Re1 {[%emt 0:00:08]} 30. Qe5+ {[%emt 0:00:00]} Rxe5 {[%emt 0:00:08]} 31. fxe5 {[%emt 0:00:00]} Be4 {[%emt 0:02:52]} 32. Nf3 {[%emt 0:00:00]} Qh5 {[%emt 0:01:43]} 33. Re3 {[%emt 0:00:00]} Qf5 {[%emt 0:01:13]} 34. d6 {[%emt 0:00:00]} Bxf3 {[%emt 0:02:10]} 35. Bxf3 {[%emt 0:00:00]} Nd3+ {[%emt 0:00:11]} 36. Kg2 {[%emt 0:00:00]} Nxe5 {[%emt 0:00:09]} 0-1

[Event "Montebelluna Elite 2020"]
[Site "Montebelluna"]
[Date "2020.01.04"]
[Round "5.7"]
[White "Barseghyan, Harutyun"]
[Black "Can, Isik"]
[Result "1-0"]
[ECO "D02"]
[WhiteElo "2459"]
[BlackElo "2374"]
[Annotator "ChessBase"]
[PlyCount "83"]
[EventDate "2020.01.02"]
[EventType "swiss"]
[EventCountry "ITA"]
[SourceTitle "playchess.com"]
[Source "ChessBase"]
[SourceQuality "1"]
[TimeControl "5400+30"]

1. d4 {[%emt 0:00:00]} d5 {[%emt 0:00:27]} 2. Nf3 {[%emt 0:00:00]} Nf6 {[%emt 0:00:06]} 3. Bf4 {[%emt 0:00:01]} c5 {[%emt 0:00:28]} 4. e3 {[%emt 0:00:10]} Nc6 {[%emt 0:02:26]} 5. Nbd2 {[%emt 0:00:10]} e6 {[%emt 0:02:00]} 6. c3 {[%emt 0:00:15]} Bd6 {[%emt 0:00:04]} 7. Bg3 {[%emt 0:00:05]} O-O {[%emt 0:00:08]} 8. Bb5 {[%emt 0:00:34]} Ne7 {[%emt 0:13:55]} 9. Bd3 {[%emt 0:02:35]} cxd4 {[%emt 0:04:15]} 10. exd4 {[%emt 0:00:57]} b6 {[%emt 0:00:28]} 11. O-O {[%emt 0:01:48]} Bb7 {[%emt 0:00:59]} 12. Re1 {[%emt 0:00:29]} Bxg3 {[%emt 0:02:00]} 13. hxg3 {[%emt 0:00:55]} Nc8 {[%emt 0:00:18]} 14. Ne5 {[%emt 0:03:12]} Nd6 {[%emt 0:00:25]} 15. f3 {[%emt 0:01:39]} g6 {[%emt 0:04:25]} 16. Kf2 {[%emt 0:03:11]} Nd7 {[%emt 0:08:20]} 17. Qe2 {[%emt 0:01:21]} Qe7 {[%emt 0:07:37]} 18. Nxd7 {[%emt 0:17:55]} Qxd7 {[%emt 0:00:15]} 19. g4 {[%emt 0:01:04]} Rae8 {[%emt 0:10:31]} 20. g5 {[%emt 0:00:38]} f6 {[%emt 0:08:45]} 21. gxf6 {[%emt 0:00:20]} Rxf6 {[%emt 0:00:02]} 22. Qe5 {[%emt 0:01:27]} Ref8 {[%emt 0:00:14]} 23. Re3 {[%emt 0:08:09]} Ne8 {[%emt 0:05:04]} 24. Rae1 {[%emt 0:01:38]} Ng7 {[%emt 0:00:23]} 25. Nf1 {[%emt 0:02:33]} Nf5 {[%emt 0:14:33]} 26. R3e2 {[%emt 0:25:44]} Qg7 {[%emt 0:01:16]} 27. Nh2 {[%emt 0:02:46]} h5 {[%emt 0:02:23]} 28. Bxf5 {[%emt 0:00:46]} gxf5 {[%emt 0:00:30]} 29. f4 {[%emt 0:00:37]} h4 {[%emt 0:01:00]} 30. Re3 {[%emt 0:00:23]} R8f7 {[%emt 0:01:11]} 31. Rh3 {[%emt 0:01:24]} Rg6 {[%emt 0:00:37]} 32. Qxg7+ {[%emt 0:00:18]} Rfxg7 {[%emt 0:00:01]} 33. Rg1 {[%emt 0:00:25]} Rh6 {[%emt 0:02:56]} 34. Nf3 {[%emt 0:02:11]} Rg4 {[%emt 0:01:56]} 35. Ke3 {[%emt 0:00:04]} Ba6 {[%emt 0:00:58]} 36. g3 {[%emt 0:03:00]} Rhg6 {[%emt 0:01:28]} 37. Nxh4 {[%emt 0:00:30]} Rh6 {[%emt 0:00:41]} 38. Rh2 {[%emt 0:01:20]} Bc4 {[%emt 0:00:08]} 39. b3 {[%emt 0:00:12]} Ba6 {[%emt 0:00:20]} 40. Nf3 {[%emt 0:00:16]} Rxh2 {[%emt 0:00:03]} 41. Nxh2 {[%emt 0:00:05]} Rg7 {[%emt 0:00:05]} 42. g4 {[%emt 0:01:23]} 1-0